[Event "Titled Tuesday Blitz January 31 Late 2023"]
[White "Zochowski, Kacper"]
[Black "Galchenko, Matvey"]
[WhiteFideId "1125494"]
[BlackFideId "24175480"]
[WhiteElo "2262"]
[BlackElo "2438"]
[Result "0-1"]
[Round "03"]
[TimeControl "180+2"]
[Date "2023.01.31"]
[WhiteClock "0:01:00"]
[BlackClock "0:00:40"]

1. c4 {[%clk 0:02:52]}  e6 {[%clk 0:02:58]} 2. g3 {[%clk 0:02:52]}  d5 {[%clk 0:02:58]} 3. Bg2 {[%clk 0:02:53]}  Nf6 {[%clk 0:02:58]} 4. Nf3 {[%clk 0:02:53]}  dxc4 {[%clk 0:02:58]} 5. Qa4+ {[%clk 0:02:53]}  Nbd7 {[%clk 0:02:58]} 6. O-O {[%clk 0:02:53]}  a6 {[%clk 0:02:58]} 7. Qxc4 {[%clk 0:02:53]}  b5 {[%clk 0:02:58]} 8. Qb3 {[%clk 0:02:54]}  Bb7 {[%clk 0:02:54]} 9. a4 {[%clk 0:02:54]}  Nc5 {[%clk 0:02:52]} 10. Qc2 {[%clk 0:02:53]}  Nxa4 {[%clk 0:02:50]} 11. Ne5 {[%clk 0:02:52]}  Bxg2 {[%clk 0:02:49]} 12. Kxg2 {[%clk 0:02:53]}  Qd5+ {[%clk 0:02:49]} 13. Nf3 {[%clk 0:02:54]}  c5 {[%clk 0:02:48]} 14. b3 {[%clk 0:02:40]}  Nb6 {[%clk 0:02:48]} 15. Nc3 {[%clk 0:02:41]}  Qb7 {[%clk 0:02:47]} 16. Bb2 {[%clk 0:02:39]}  Be7 {[%clk 0:02:47]} 17. Kg1 {[%clk 0:02:40]}  O-O {[%clk 0:02:47]} 18. Ne5 {[%clk 0:02:40]}  Rfd8 {[%clk 0:02:45]} 19. d3 {[%clk 0:02:40]}  h6 {[%clk 0:02:43]} 20. Ne4 {[%clk 0:02:39]}  Rac8 {[%clk 0:02:41]} 21. Nxf6+ {[%clk 0:02:27]}  Bxf6 {[%clk 0:02:41]} 22. Rfc1 {[%clk 0:02:24]}  Nd5 {[%clk 0:02:41]} 23. Nf3 {[%clk 0:02:23]}  Nb4 {[%clk 0:02:40]} 24. Qb1 {[%clk 0:02:23]}  Bxb2 {[%clk 0:02:39]} 25. Qxb2 {[%clk 0:02:24]}  Nxd3 {[%clk 0:02:33]} 26. exd3 {[%clk 0:02:21]}  Qxf3 {[%clk 0:02:33]} 27. Rxa6 {[%clk 0:02:22]}  Rxd3 {[%clk 0:02:31]} 28. b4 {[%clk 0:02:16]}  Rcd8 {[%clk 0:02:24]} 29. Raa1 {[%clk 0:02:16]}  c4 {[%clk 0:02:23]} 30. Qe5 {[%clk 0:02:16]}  R3d5 {[%clk 0:02:22]} 31. Qc7 {[%clk 0:02:16]}  Rd2 {[%clk 0:02:19]} 32. Qb6 {[%clk 0:02:16]}  c3 {[%clk 0:02:10]} 33. Qe3 {[%clk 0:01:33]}  Qxe3 {[%clk 0:02:03]} 34. fxe3 {[%clk 0:01:34]}  c2 {[%clk 0:02:03]} 35. h4 {[%clk 0:01:33]}  Re2 {[%clk 0:01:55]} 36. Kf1 {[%clk 0:01:33]}  Rdd2 {[%clk 0:01:56]} 37. Ra8+ {[%clk 0:01:30]}  Kh7 {[%clk 0:01:56]} 38. Rc8 {[%clk 0:01:31]}  Rh2 {[%clk 0:01:27]} 39. Ke1 {[%clk 0:01:27]}  Rdg2 {[%clk 0:01:19]} 40. Kf1 {[%clk 0:01:27]}  Rxg3 {[%clk 0:01:18]} 41. R1xc2 {[%clk 0:01:24]}  Rxh4 {[%clk 0:01:18]} 42. Rf8 {[%clk 0:01:22]}  Rxb4 {[%clk 0:01:00]} 43. Rxf7 {[%clk 0:01:21]}  Re4 {[%clk 0:00:59]} 44. Rcc7 {[%clk 0:01:17]}  Rexe3 {[%clk 0:00:58]} 45. Kf2 {[%clk 0:01:17]}  Ra3 {[%clk 0:00:55]} 46. Rb7 {[%clk 0:01:16]}  Rg5 {[%clk 0:00:55]} 47. Rfe7 {[%clk 0:01:16]}  Ra2+ {[%clk 0:00:53]} 48. Kf3 {[%clk 0:01:16]}  Ra3+ {[%clk 0:00:53]} 49. Kf4 {[%clk 0:01:16]}  Ra4+ {[%clk 0:00:54]} 50. Kf3 {[%clk 0:01:17]}  Ra6 {[%clk 0:00:55]} 51. Kf4 {[%clk 0:01:15]}  Rc6 {[%clk 0:00:54]} 52. Kf3 {[%clk 0:01:14]}  h5 {[%clk 0:00:54]} 53. Rb8 {[%clk 0:01:11]}  Rg4 {[%clk 0:00:49]} 54. Ree8 {[%clk 0:01:11]}  b4 {[%clk 0:00:47]} 55. Rh8+ {[%clk 0:01:07]}  Kg6 {[%clk 0:00:47]} 56. Rb5 {[%clk 0:01:07]}  Rc3+ {[%clk 0:00:45]} 57. Kf2 {[%clk 0:01:07]}  h4 {[%clk 0:00:46]} 58. Rb6 {[%clk 0:01:05]}  Re4 {[%clk 0:00:45]} 59. Re8 {[%clk 0:01:00]}  h3 {[%clk 0:00:45]} 60. Rexe6+ {[%clk 0:01:00]}  Rxe6 {[%clk 0:00:46]} 61. Rxe6+ {[%clk 0:01:01]}  Kf5 {[%clk 0:00:47]} 62. Rb6 {[%clk 0:01:01]}  b3 {[%clk 0:00:46]} 63. Kg1 {[%clk 0:00:59]}  Ke4 {[%clk 0:00:45]} 64. Rg6 {[%clk 0:00:58]}  b2 {[%clk 0:00:44]} 65. Rb6 {[%clk 0:00:58]}  Rc1+ {[%clk 0:00:44]} 66. Kh2 {[%clk 0:00:58]}  b1=Q {[%clk 0:00:45]} 67. Rg6 {[%clk 0:00:59]}  Rh1+ {[%clk 0:00:44]} 68. Kg3 {[%clk 0:00:59]}  Rg1+ {[%clk 0:00:44]} 69. Kh4 {[%clk 0:00:59]}  Rxg6 {[%clk 0:00:43]} 70. Kh5 {[%clk 0:01:00]}  Qg1 {[%clk 0:00:39]} 71. Kh4 {[%clk 0:01:00]}  Qg4# {[%clk 0:00:40]} 0-1


[Site "https://www.chess.com"]

[Event "Titled Tuesday Blitz January 31 Late 2023"]
[White "Fier, Alexandr"]
[Black "Karas, Marek"]
[WhiteFideId "2107139"]
[BlackFideId "14928558"]
[WhiteElo "2589"]
[BlackElo "2227"]
[Result "0-1"]
[Round "03"]
[TimeControl "180+2"]
[Date "2023.01.31"]
[WhiteClock "0:02:01"]
[BlackClock "0:00:07"]

1. h4 {[%clk 0:03:00]}  e5 {[%clk 0:02:56]} 2. h5 {[%clk 0:03:01]}  h6 {[%clk 0:02:52]} 3. d4 {[%clk 0:03:00]}  exd4 {[%clk 0:02:50]} 4. Nf3 {[%clk 0:03:01]}  d5 {[%clk 0:02:47]} 5. c4 {[%clk 0:02:55]}  dxc4 {[%clk 0:02:39]} 6. e3 {[%clk 0:02:50]}  dxe3 {[%clk 0:02:32]} 7. Qxd8+ {[%clk 0:02:51]}  Kxd8 {[%clk 0:02:33]} 8. Bxe3 {[%clk 0:02:52]}  Bb4+ {[%clk 0:02:21]} 9. Nc3 {[%clk 0:02:52]}  Nf6 {[%clk 0:01:39]} 10. O-O-O+ {[%clk 0:02:50]}  Ke8 {[%clk 0:01:33]} 11. Bxc4 {[%clk 0:02:50]}  Be6 {[%clk 0:01:17]} 12. Rhe1 {[%clk 0:02:44]}  Bxc4 {[%clk 0:01:11]} 13. Bxh6+ {[%clk 0:02:44]}  Be6 {[%clk 0:01:05]} 14. Bxg7 {[%clk 0:02:44]}  Rxh5 {[%clk 0:00:59]} 15. Bxf6 {[%clk 0:02:44]}  Be7 {[%clk 0:00:51]} 16. Be5 {[%clk 0:02:42]}  Na6 {[%clk 0:00:40]} 17. Ne4 {[%clk 0:02:39]}  Rd8 {[%clk 0:00:34]} 18. Nf6+ {[%clk 0:02:38]}  Bxf6 {[%clk 0:00:34]} 19. Bxf6 {[%clk 0:02:39]}  Rxd1+ {[%clk 0:00:34]} 20. Rxd1 {[%clk 0:02:40]}  Rd5 {[%clk 0:00:35]} 21. Rh1 {[%clk 0:02:41]}  Kd7 {[%clk 0:00:31]} 22. Ne5+ {[%clk 0:02:41]}  Kd6 {[%clk 0:00:30]} 23. f4 {[%clk 0:02:42]}  Nc5 {[%clk 0:00:29]} 24. Rh8 {[%clk 0:02:33]}  Nd3+ {[%clk 0:00:25]} 25. Kc2 {[%clk 0:02:34]}  Nxe5 {[%clk 0:00:24]} 26. Bxe5+ {[%clk 0:02:34]}  Kc6 {[%clk 0:00:25]} 27. Rh6 {[%clk 0:02:32]}  Kd7 {[%clk 0:00:22]} 28. b3 {[%clk 0:02:29]}  Rc5+ {[%clk 0:00:22]} 29. Kb2 {[%clk 0:02:29]}  Rd5 {[%clk 0:00:23]} 30. Bc3 {[%clk 0:02:28]}  Rd3 {[%clk 0:00:22]} 31. Rh1 {[%clk 0:02:21]}  Rg3 {[%clk 0:00:21]} 32. Rd1+ {[%clk 0:02:21]}  Kc6 {[%clk 0:00:19]} 33. Be5 {[%clk 0:02:13]}  Rxg2+ {[%clk 0:00:19]} 34. Ka3 {[%clk 0:02:14]}  Rc2 {[%clk 0:00:17]} 35. Rf1 {[%clk 0:02:11]}  Bf5 {[%clk 0:00:16]} 36. Rd1 {[%clk 0:02:11]}  b6 {[%clk 0:00:16]} 37. Rd8 {[%clk 0:02:09]}  Kb7 {[%clk 0:00:16]} 38. Rf8 {[%clk 0:02:10]}  Bg6 {[%clk 0:00:16]} 39. Re8 {[%clk 0:02:09]}  f6 {[%clk 0:00:11]} 40. Rg8 {[%clk 0:02:07]}  fxe5 {[%clk 0:00:11]} 41. Rxg6 {[%clk 0:02:07]}  exf4 {[%clk 0:00:11]} 42. Rf6 {[%clk 0:02:08]}  Rf2 {[%clk 0:00:10]} 43. Kb4 {[%clk 0:02:08]}  Rxa2 {[%clk 0:00:10]} 44. Rxf4 {[%clk 0:02:08]}  Re2 {[%clk 0:00:10]} 45. Ka3 {[%clk 0:02:07]}  Re6 {[%clk 0:00:10]} 46. Rf5 {[%clk 0:02:07]}  Rd6 {[%clk 0:00:11]} 47. Rg5 {[%clk 0:02:08]}  a5 {[%clk 0:00:11]} 48. Ka4 {[%clk 0:02:08]}  Rd4+ {[%clk 0:00:10]} 49. Ka3 {[%clk 0:02:08]}  Re4 {[%clk 0:00:11]} 50. Rg7 {[%clk 0:02:08]}  Re6 {[%clk 0:00:10]} 51. Rh7 {[%clk 0:02:08]}  Rd6 {[%clk 0:00:11]} 52. Ka4 {[%clk 0:02:08]}  Rc6 {[%clk 0:00:12]} 53. Kb5 {[%clk 0:02:08]}  Rc5+ {[%clk 0:00:12]} 54. Ka4 {[%clk 0:02:09]}  Rc1 {[%clk 0:00:13]} 55. Kb5 {[%clk 0:02:08]}  Rc3 {[%clk 0:00:12]} 56. Ka4 {[%clk 0:02:09]}  Ka6 {[%clk 0:00:12]} 57. Rh8 {[%clk 0:02:07]}  b5+ {[%clk 0:00:11]} 58. Ka3 {[%clk 0:02:07]}  Kb7 {[%clk 0:00:09]} 59. Kb2 {[%clk 0:02:07]}  Rg3 {[%clk 0:00:08]} 60. Rh6 {[%clk 0:02:08]}  c6 {[%clk 0:00:09]} 61. Rh8 {[%clk 0:02:08]}  Kb6 {[%clk 0:00:09]} 62. Ra8 {[%clk 0:02:08]}  Rg7 {[%clk 0:00:09]} 63. Ka3 {[%clk 0:02:08]}  Ra7 {[%clk 0:00:08]} 64. Rf8 {[%clk 0:02:08]}  a4 {[%clk 0:00:08]} 65. b4 {[%clk 0:02:08]}  Re7 {[%clk 0:00:08]} 66. Rf3 {[%clk 0:02:08]}  Re4 {[%clk 0:00:08]} 67. Rc3 {[%clk 0:02:08]}  Re6 {[%clk 0:00:09]} 68. Rd3 {[%clk 0:02:08]}  c5 {[%clk 0:00:09]} 69. bxc5+ {[%clk 0:02:07]}  Kxc5 {[%clk 0:00:10]} 70. Rh3 {[%clk 0:02:07]}  Kb6 {[%clk 0:00:09]} 71. Kb4 {[%clk 0:02:07]}  Re4+ {[%clk 0:00:09]} 72. Ka3 {[%clk 0:02:08]}  Ka5 {[%clk 0:00:10]} 73. Rh5 {[%clk 0:02:08]}  Re3+ {[%clk 0:00:10]} 74. Ka2 {[%clk 0:02:09]}  Kb4 {[%clk 0:00:11]} 75. Rh4+ {[%clk 0:02:09]}  Kc3 {[%clk 0:00:10]} 76. Ka3 {[%clk 0:02:07]}  Re1 {[%clk 0:00:07]} 77. Rh3+ {[%clk 0:02:08]}  Kc4 {[%clk 0:00:06]} 78. Rh4+ {[%clk 0:02:08]}  Kd5 {[%clk 0:00:06]} 79. Kb4 {[%clk 0:02:03]}  Re4+ {[%clk 0:00:06]} 80. Rxe4 {[%clk 0:02:01]}  Kxe4 {[%clk 0:00:07]} 0-1


[Site "https://www.chess.com"]

[Event "Titled Tuesday Blitz January 31 Late 2023"]
[White "Mikaelyan, Arman"]
[Black "Winterberg, Lukas"]
[WhiteFideId "13304852"]
[BlackFideId "24622702"]
[WhiteElo "2523"]
[BlackElo "2402"]
[Result "0-1"]
[Round "03"]
[TimeControl "180+2"]
[Date "2023.01.31"]
[WhiteClock "0:00:12"]
[BlackClock "0:01:37"]

1. Nf3 {[%clk 0:03:00]}  Nf6 {[%clk 0:02:57]} 2. g3 {[%clk 0:03:01]}  d5 {[%clk 0:02:56]} 3. Bg2 {[%clk 0:03:00]}  g6 {[%clk 0:02:55]} 4. O-O {[%clk 0:03:00]}  Bg7 {[%clk 0:02:56]} 5. d3 {[%clk 0:02:59]}  O-O {[%clk 0:02:56]} 6. Nc3 {[%clk 0:02:59]}  Bg4 {[%clk 0:02:53]} 7. h3 {[%clk 0:02:59]}  Bxf3 {[%clk 0:02:53]} 8. Bxf3 {[%clk 0:03:00]}  c6 {[%clk 0:02:54]} 9. e4 {[%clk 0:03:00]}  e6 {[%clk 0:02:53]} 10. Bg2 {[%clk 0:02:58]}  Nbd7 {[%clk 0:02:53]} 11. f4 {[%clk 0:02:50]}  a5 {[%clk 0:02:49]} 12. a4 {[%clk 0:02:47]}  Nh5 {[%clk 0:02:46]} 13. g4 {[%clk 0:02:42]}  Nhf6 {[%clk 0:02:38]} 14. f5 {[%clk 0:02:27]}  dxe4 {[%clk 0:02:26]} 15. fxe6 {[%clk 0:02:23]}  fxe6 {[%clk 0:02:13]} 16. dxe4 {[%clk 0:02:18]}  Ne5 {[%clk 0:02:06]} 17. Qe2 {[%clk 0:02:14]}  Nfd7 {[%clk 0:02:00]} 18. Be3 {[%clk 0:02:11]}  Qe7 {[%clk 0:01:59]} 19. Rad1 {[%clk 0:02:04]}  Qb4 {[%clk 0:01:58]} 20. Bc1 {[%clk 0:01:26]}  Rxf1+ {[%clk 0:01:49]} 21. Rxf1 {[%clk 0:01:27]}  Rf8 {[%clk 0:01:49]} 22. Rxf8+ {[%clk 0:01:27]}  Bxf8 {[%clk 0:01:49]} 23. Bf1 {[%clk 0:01:25]}  Bc5+ {[%clk 0:01:43]} 24. Kh2 {[%clk 0:01:12]}  Qd4 {[%clk 0:01:44]} 25. Bg2 {[%clk 0:01:06]}  Qg1+ {[%clk 0:01:42]} 26. Kg3 {[%clk 0:01:06]}  Qxc1 {[%clk 0:01:42]} 27. h4 {[%clk 0:00:53]}  Bd6 {[%clk 0:01:41]} 28. Kf2 {[%clk 0:00:51]}  Qf4+ {[%clk 0:01:40]} 29. Ke1 {[%clk 0:00:51]}  Qxg4 {[%clk 0:01:37]} 30. Qf2 {[%clk 0:00:12]} 0-1


[Site "https://www.chess.com"]

[Event "Titled Tuesday Blitz January 31 Late 2023"]
[White "Girel, Joseph"]
[Black "Koutlas, Nikolaos"]
[WhiteFideId "36033561"]
[BlackFideId "25827138"]
[WhiteElo "2395"]
[BlackElo "2341"]
[Result "0-1"]
[Round "03"]
[TimeControl "180+2"]
[Date "2023.01.31"]
[WhiteClock "0:00:07"]
[BlackClock "0:00:13"]

1. e4 {[%clk 0:03:00]}  c5 {[%clk 0:02:58]} 2. Nf3 {[%clk 0:03:00]}  Nc6 {[%clk 0:02:58]} 3. d4 {[%clk 0:02:59]}  cxd4 {[%clk 0:02:59]} 4. Nxd4 {[%clk 0:02:59]}  e5 {[%clk 0:03:00]} 5. Nb5 {[%clk 0:02:58]}  d6 {[%clk 0:03:00]} 6. c4 {[%clk 0:02:57]}  g6 {[%clk 0:02:59]} 7. Be3 {[%clk 0:02:53]}  Nf6 {[%clk 0:02:53]} 8. f3 {[%clk 0:02:50]}  a6 {[%clk 0:02:47]} 9. N5c3 {[%clk 0:02:50]}  Bg7 {[%clk 0:02:46]} 10. Nd2 {[%clk 0:02:49]}  O-O {[%clk 0:02:46]} 11. Bd3 {[%clk 0:02:46]}  Nh5 {[%clk 0:02:44]} 12. O-O {[%clk 0:02:45]}  Nf4 {[%clk 0:02:43]} 13. Bc2 {[%clk 0:02:45]}  Qg5 {[%clk 0:02:36]} 14. Bxf4 {[%clk 0:02:35]}  exf4 {[%clk 0:02:36]} 15. Nd5 {[%clk 0:02:27]}  Bh3 {[%clk 0:02:01]} 16. Rf2 {[%clk 0:02:14]}  Bd4 {[%clk 0:02:00]} 17. Qf1 {[%clk 0:02:14]}  Be6 {[%clk 0:01:44]} 18. Kh1 {[%clk 0:02:02]}  Bxf2 {[%clk 0:01:41]} 19. Qxf2 {[%clk 0:02:02]}  Qe5 {[%clk 0:01:40]} 20. Nb3 {[%clk 0:01:52]}  Qxb2 {[%clk 0:01:34]} 21. Rb1 {[%clk 0:01:43]}  Qe5 {[%clk 0:01:31]} 22. c5 {[%clk 0:01:36]}  Rfd8 {[%clk 0:01:13]} 23. Nb6 {[%clk 0:01:26]}  Rab8 {[%clk 0:01:04]} 24. h3 {[%clk 0:01:25]}  dxc5 {[%clk 0:00:58]} 25. Nxc5 {[%clk 0:01:26]}  Rd4 {[%clk 0:00:50]} 26. Nd3 {[%clk 0:01:15]}  Qd6 {[%clk 0:00:50]} 27. e5 {[%clk 0:00:55]}  Nxe5 {[%clk 0:00:42]} 28. Nxe5 {[%clk 0:00:50]}  Qxe5 {[%clk 0:00:41]} 29. Be4 {[%clk 0:00:51]}  Bxh3 {[%clk 0:00:32]} 30. gxh3 {[%clk 0:00:34]}  Rxe4 {[%clk 0:00:31]} 31. Nd7 {[%clk 0:00:34]}  Re2 {[%clk 0:00:30]} 32. Qf1 {[%clk 0:00:29]}  Qe3 {[%clk 0:00:17]} 33. Nxb8 {[%clk 0:00:18]}  Rf2 {[%clk 0:00:17]} 34. Qd1 {[%clk 0:00:18]}  Rxf3 {[%clk 0:00:13]} 35. Rb3 {[%clk 0:00:10]}  Rxh3+ {[%clk 0:00:12]} 36. Kg2 {[%clk 0:00:10]}  Rg3+ {[%clk 0:00:12]} 37. Kh2 {[%clk 0:00:10]}  Qf2+ {[%clk 0:00:12]} 38. Kh1 {[%clk 0:00:07]}  Qg2# {[%clk 0:00:13]} 0-1


[Site "https://www.chess.com"]

[Event "Titled Tuesday Blitz January 31 Late 2023"]
[White "Rakhmatullaev, Almas"]
[Black "Ekdyshman, Mikhail"]
[WhiteFideId "14205793"]
[BlackFideId "4149416"]
[WhiteElo "2275"]
[BlackElo "2264"]
[Result "1-0"]
[Round "03"]
[TimeControl "180+2"]
[Date "2023.01.31"]
[WhiteClock "0:00:45"]
[BlackClock "0:00:01"]

1. e4 {[%clk 0:03:00]}  c5 {[%clk 0:02:59]} 2. c3 {[%clk 0:03:01]}  d5 {[%clk 0:02:58]} 3. exd5 {[%clk 0:03:02]}  Qxd5 {[%clk 0:02:58]} 4. d4 {[%clk 0:03:02]}  Nf6 {[%clk 0:02:59]} 5. Nf3 {[%clk 0:03:02]}  Bf5 {[%clk 0:02:59]} 6. Be3 {[%clk 0:03:01]}  Bxb1 {[%clk 0:02:59]} 7. Rxb1 {[%clk 0:03:00]}  e6 {[%clk 0:02:55]} 8. dxc5 {[%clk 0:03:00]}  Nc6 {[%clk 0:02:50]} 9. Bb5 {[%clk 0:02:52]}  Rd8 {[%clk 0:02:47]} 10. Qxd5 {[%clk 0:02:39]}  Nxd5 {[%clk 0:02:41]} 11. Ne5 {[%clk 0:02:27]}  Rc8 {[%clk 0:02:01]} 12. Bxc6+ {[%clk 0:02:17]}  bxc6 {[%clk 0:02:02]} 13. Nd3 {[%clk 0:02:17]}  Nxe3 {[%clk 0:01:56]} 14. fxe3 {[%clk 0:02:18]}  f6 {[%clk 0:01:56]} 15. Ke2 {[%clk 0:02:17]}  e5 {[%clk 0:01:56]} 16. e4 {[%clk 0:02:18]}  g6 {[%clk 0:01:49]} 17. b4 {[%clk 0:02:19]}  Be7 {[%clk 0:01:49]} 18. Rbd1 {[%clk 0:02:19]}  Kf7 {[%clk 0:01:48]} 19. Nb2 {[%clk 0:02:16]}  Ke6 {[%clk 0:01:47]} 20. Nc4 {[%clk 0:02:15]}  f5 {[%clk 0:01:45]} 21. exf5+ {[%clk 0:01:58]}  gxf5 {[%clk 0:01:45]} 22. Rhe1 {[%clk 0:01:57]}  Rhg8 {[%clk 0:01:40]} 23. Kf1 {[%clk 0:01:57]}  e4 {[%clk 0:01:38]} 24. a4 {[%clk 0:01:57]}  h5 {[%clk 0:01:32]} 25. a5 {[%clk 0:01:54]}  a6 {[%clk 0:01:16]} 26. Rd2 {[%clk 0:01:50]}  Rcd8 {[%clk 0:01:12]} 27. Red1 {[%clk 0:01:50]}  Rxd2 {[%clk 0:01:08]} 28. Rxd2 {[%clk 0:01:51]}  Rd8 {[%clk 0:01:07]} 29. Rxd8 {[%clk 0:01:49]}  Bxd8 {[%clk 0:01:08]} 30. Ke2 {[%clk 0:01:50]}  Bf6 {[%clk 0:01:03]} 31. Kd2 {[%clk 0:01:50]}  f4 {[%clk 0:00:59]} 32. Nd6 {[%clk 0:01:50]}  e3+ {[%clk 0:00:44]} 33. Kd3 {[%clk 0:01:50]}  e2 {[%clk 0:00:25]} 34. Kxe2 {[%clk 0:01:46]}  Bxc3 {[%clk 0:00:25]} 35. b5 {[%clk 0:01:26]}  cxb5 {[%clk 0:00:23]} 36. Nxb5 {[%clk 0:01:21]}  Bxa5 {[%clk 0:00:18]} 37. Nd4+ {[%clk 0:00:57]}  Kd5 {[%clk 0:00:17]} 38. Kd3 {[%clk 0:00:58]}  Kxc5 {[%clk 0:00:06]} 39. Ne6+ {[%clk 0:00:58]}  Kd6 {[%clk 0:00:06]} 40. Nxf4 {[%clk 0:00:59]}  h4 {[%clk 0:00:05]} 41. Kc4 {[%clk 0:00:49]}  Bd8 {[%clk 0:00:05]} 42. Nd3 {[%clk 0:00:44]}  a5 {[%clk 0:00:03]} 43. Nc5 {[%clk 0:00:44]}  Ke5 {[%clk 0:00:02]} 44. Kb5 {[%clk 0:00:44]}  Kf4 {[%clk 0:00:01]} 45. Ne6+ {[%clk 0:00:45]} 1-0


[Site "https://www.chess.com"]

[Event "Titled Tuesday Blitz January 31 Late 2023"]
[White "Averjanov, Alexey"]
[Black "Senthilkumar, Pranav"]
[WhiteFideId "14109867"]
[BlackFideId "2083477"]
[WhiteElo "2399"]
[BlackElo "1854"]
[Result "1-0"]
[Round "03"]
[TimeControl "180+2"]
[Date "2023.01.31"]
[WhiteClock "0:01:04"]
[BlackClock "0:00:42"]

1. d4 {[%clk 0:02:56]}  Nf6 {[%clk 0:02:59]} 2. c4 {[%clk 0:02:54]}  e6 {[%clk 0:02:59]} 3. Nf3 {[%clk 0:02:53]}  Bb4+ {[%clk 0:02:59]} 4. Nbd2 {[%clk 0:02:53]}  O-O {[%clk 0:02:57]} 5. g3 {[%clk 0:02:53]}  c5 {[%clk 0:02:54]} 6. Bg2 {[%clk 0:02:53]}  Nc6 {[%clk 0:02:54]} 7. dxc5 {[%clk 0:02:52]}  Bxc5 {[%clk 0:02:52]} 8. a3 {[%clk 0:02:53]}  d5 {[%clk 0:02:49]} 9. b4 {[%clk 0:02:53]}  Be7 {[%clk 0:02:50]} 10. Bb2 {[%clk 0:02:53]}  Qc7 {[%clk 0:02:32]} 11. Rc1 {[%clk 0:02:52]}  Qb8 {[%clk 0:02:31]} 12. O-O {[%clk 0:02:47]}  Rd8 {[%clk 0:02:29]} 13. Qb3 {[%clk 0:02:40]}  a6 {[%clk 0:02:27]} 14. Rfd1 {[%clk 0:02:39]}  Bd7 {[%clk 0:02:23]} 15. e3 {[%clk 0:02:36]}  Na7 {[%clk 0:02:22]} 16. Ne5 {[%clk 0:02:30]}  Be8 {[%clk 0:02:19]} 17. c5 {[%clk 0:02:28]}  a5 {[%clk 0:02:07]} 18. Ndf3 {[%clk 0:02:25]}  Ne4 {[%clk 0:02:03]} 19. Nd3 {[%clk 0:02:14]}  Bb5 {[%clk 0:01:55]} 20. Nd4 {[%clk 0:02:12]}  Bc4 {[%clk 0:01:54]} 21. Qc2 {[%clk 0:02:11]}  axb4 {[%clk 0:01:49]} 22. axb4 {[%clk 0:02:12]}  Ba6 {[%clk 0:01:38]} 23. Qb3 {[%clk 0:02:04]}  Nb5 {[%clk 0:01:36]} 24. Nxb5 {[%clk 0:01:57]}  Bxb5 {[%clk 0:01:37]} 25. Ra1 {[%clk 0:01:47]}  Rxa1 {[%clk 0:01:36]} 26. Rxa1 {[%clk 0:01:48]}  Bc4 {[%clk 0:01:30]} 27. Qc2 {[%clk 0:01:48]}  Bb5 {[%clk 0:01:27]} 28. Ra5 {[%clk 0:01:43]}  Bxd3 {[%clk 0:01:23]} 29. Qxd3 {[%clk 0:01:44]}  b6 {[%clk 0:01:23]} 30. Rb5 {[%clk 0:01:38]}  Qa7 {[%clk 0:01:21]} 31. Rxb6 {[%clk 0:01:35]}  Qa2 {[%clk 0:01:21]} 32. Qc2 {[%clk 0:01:12]}  Bf6 {[%clk 0:01:20]} 33. Bxe4 {[%clk 0:01:06]}  dxe4 {[%clk 0:01:16]} 34. c6 {[%clk 0:01:05]}  Qxb2 {[%clk 0:00:42]} 35. Qxb2 {[%clk 0:01:04]}  Bxb2 {[%clk 0:00:43]} 36. c7 {[%clk 0:01:03]}  Rd1+ {[%clk 0:00:42]} 37. Kg2 {[%clk 0:01:04]} 1-0


[Site "https://www.chess.com"]

[Event "Titled Tuesday Blitz January 31 Late 2023"]
[White "Matko, Ognjen"]
[Black "Stoyanov, Tsvetan"]
[WhiteFideId "14509717"]
[BlackFideId "2917173"]
[WhiteElo "2295"]
[BlackElo "2454"]
[Result "0-1"]
[Round "03"]
[TimeControl "180+2"]
[Date "2023.01.31"]
[WhiteClock "0:00:02"]
[BlackClock "0:00:34"]

1. Nf3 {[%clk 0:03:00]}  d5 {[%clk 0:02:59]} 2. g3 {[%clk 0:02:59]}  Bg4 {[%clk 0:02:59]} 3. Bg2 {[%clk 0:02:56]}  c6 {[%clk 0:02:59]} 4. c4 {[%clk 0:02:55]}  Nf6 {[%clk 0:02:56]} 5. h3 {[%clk 0:02:55]}  Bh5 {[%clk 0:02:53]} 6. O-O {[%clk 0:02:44]}  Nbd7 {[%clk 0:02:52]} 7. d4 {[%clk 0:02:41]}  e6 {[%clk 0:02:52]} 8. Qb3 {[%clk 0:02:36]}  Qc8 {[%clk 0:02:41]} 9. Nc3 {[%clk 0:02:33]}  Nb6 {[%clk 0:02:39]} 10. cxd5 {[%clk 0:02:32]}  exd5 {[%clk 0:02:37]} 11. Bf4 {[%clk 0:02:24]}  Be7 {[%clk 0:02:35]} 12. Rac1 {[%clk 0:02:21]}  O-O {[%clk 0:02:34]} 13. Ne5 {[%clk 0:02:04]}  Re8 {[%clk 0:02:29]} 14. g4 {[%clk 0:01:58]}  Bg6 {[%clk 0:02:28]} 15. a4 {[%clk 0:01:52]}  Bd8 {[%clk 0:01:30]} 16. a5 {[%clk 0:01:44]}  Nc4 {[%clk 0:01:30]} 17. a6 {[%clk 0:01:32]}  b5 {[%clk 0:01:24]} 18. Nxc4 {[%clk 0:00:37]}  dxc4 {[%clk 0:01:19]} 19. Qa2 {[%clk 0:00:32]}  Bb6 {[%clk 0:01:13]} 20. b3 {[%clk 0:00:14]}  Bxd4 {[%clk 0:01:07]} 21. bxc4 {[%clk 0:00:13]}  b4 {[%clk 0:01:07]} 22. Nb1 {[%clk 0:00:07]}  Nxg4 {[%clk 0:00:58]} 23. hxg4 {[%clk 0:00:06]}  Qxg4 {[%clk 0:00:58]} 24. e3 {[%clk 0:00:04]}  Be4 {[%clk 0:00:42]} 25. f3 {[%clk 0:00:05]}  Qxf4 {[%clk 0:00:42]} 26. fxe4 {[%clk 0:00:03]}  Qxe3+ {[%clk 0:00:39]} 27. Kh2 {[%clk 0:00:02]}  Be5+ {[%clk 0:00:33]} 28. Kh1 {[%clk 0:00:02]}  Qh6+ {[%clk 0:00:33]} 29. Kg1 {[%clk 0:00:02]}  Bd4+ {[%clk 0:00:34]} 30. Rf2 {[%clk 0:00:02]}  Qxc1+ {[%clk 0:00:34]} 0-1


[Site "https://www.chess.com"]